Cogmind - Beta 10.2 --- EXPLORER MODE // 2021.02.07 @ 13:26:25 Player: Nalum Result: Destroyed by S-10 Pest with Light Assault Rifle Performance ------------- Evolutions (1) 500 Regions Visited (2) 400 Robots Destroyed (22) 110 Value Destroyed (524) 524 Prototype IDs (2) 40 Alien Tech Used (0) 0 Bonus (0) 0 TOTAL SCORE: 1574 Bonus ------- None Cogmind --------- Core Integrity 0/400 Matter 44/300 Energy 98/100 System Corruption 0% Temperature Cool (2) Movement Flying (35) Location -9/Materials Parts ------- > --- POWER (1) -------- (None) > --- PROPULSION (2) --- Improved Flight Unit > --- UTILITY (5) ------ Visual Processing Unit Advanced Signal Interpreter Advanced Targeting Computer > --- WEAPON (2) ------- (None) > --- INVENTORY (4) ---- Aluminum Leg Aluminum Leg Wheel Light Armor Plating Peak State ------------ > --- POWER ------------ Light Ion Engine > --- PROPULSION ------- Improved Hover Unit > --- UTILITY ---------- Visual Processing Unit Visual Processing Unit Advanced Signal Interpreter Advanced Targeting Computer > --- WEAPON ----------- Rocket Launcher Maul > --- INVENTORY -------- Aluminum Leg Aluminum Leg Wheel Light Armor Plating [Rating: 17] Favorites ----------- Power Light Ion Engine Engine Light Ion Engine Propulsion Compact Wheel Wheel Compact Wheel Hover Unit Improved Hover Unit Flight Unit Improved Flight Unit Utility Targeting Computer Device ECM Suite Processor Targeting Computer Protection Weapon Shielding Weapon Assault Rifle Energy Gun Small Laser Ballistic Gun Assault Rifle Launcher Rocket Launcher Special Weapon Mining Laser Impact Weapon Maul Build | -11 -10 -9 ------- Run | Scr Mat Mat Slots Evolved 3 | . 1 2 Power . | . . . Propulsion . | . . . Utility 3 | . 1 2 Weapon . | . . . Parts Attached 36 | 7 8 21 Power 3 | 1 . 2 Engine 3 | 1 . 2 Core . | . . . Reactor . | . . . Propulsion 10 | 2 3 5 Treads . | . . . Leg . | . . . Wheel 6 | 2 3 1 Hover 3 | . . 3 Flight 1 | . . 1 Utility 10 | 2 3 5 Device 2 | . 1 1 Storage . | . . . Processor 6 | 1 1 4 Hackware . | . . . Protection 2 | 1 1 . Artifact . | . . . Weapon 13 | 2 2 9 Energy Gun 1 | 1 . . Energy Cannon . | . . . Ballistic Gun 3 | 1 1 1 Ballistic Cannon . | . . . Launcher 4 | . . 4 Special Weapon 4 | . 1 3 Impact Weapon 1 | . . 1 Slashing Weapon . | . . . Piercing Weapon . | . . . Special Melee Weapon . | . . . Unidentified Prototypes . | . . . Parts Lost 14 | . 2 12 Power 3 | . . 3 Propulsion 4 | . 1 3 Utility 2 | . . 2 Weapon 5 | . 1 4 Highest Loss Streak 3 | . 2 3 Average Slot Usage (%) 81 | . 91 70 Engine 9 | . 12 6 Wheel 17 | . 24 10 Hover 1 | . . 2 Device 6 | . 4 9 Processor 18 | . 12 25 Protection 6 | . 12 . Energy Gun 2 | . 5 . Ballistic Gun 7 | . 9 6 Special Weapon 6 | . 8 3 Impact Weapon 2 | . . 4 Naked Turns . | . . . Heaviest Build 10 | 6 9 10 Greatest Support 32 | 20 32 32 Greatest Overweight (x) 1 | . . 1 Average Overweight (x) . | . . . Largest Inventory Capacity 4 | 4 4 4 Average Capacity 4 | 4 4 4 Most Carried 4 | 4 4 4 Average Carried 3 | 2 3 4 Final Capacity 4 | 4 4 4 Final Carried 4 | 4 4 4 Class Distribution -------------------- 95% | Hacker-Mutant 3% | Hacker-Skirmisher Dominant Class ---------------- Hacker-Mutant | -10/Materials Hacker-Mutant | -9/Materials Resources | -11 -10 -9 ----------- Run | Scr Mat Mat Matter Collected 578 | 272 47 259 Remotely . | . . . Salvage Created 532 | 43 189 300 Parts 41 | 4 14 23 Haulers Intercepted . | . . . Recyclers Shooed . | . . . Parts Field Recycled . | . . . Retrieved Matter . | . . . Parts Self-Destructed . | . . . Prevented . | . . . Kills | -11 -10 -9 ------- Run | Scr Mat Mat Combat Hostiles Destroyed 15 | 1 6 8 Melee 1 | . . 1 Guns 9 | 1 6 2 AOE 4 | . . 4 Classes Destroyed 7 | 1 3 3 Worker 2 | . 1 1 Builder 1 | . . 1 Tunneler 1 | . . 1 Watcher 3 | . 2 1 Swarmer 4 | . 4 . Grunt 9 | 1 2 6 Sentry 2 | . . 2 Best Kill Streak 5 | 1 5 3 Combat Bots Only 4 | 1 4 2 Max Kills in Single Turn 2 | 1 2 1 Gunslinging 1 | . 1 . Exploded 1 | . . 1 Melee 1 | . . 1 Uniques/NPCs Destroyed . | . . . Combat | -11 -10 -9 -------- Run | Scr Mat Mat Damage Taken 1289 | 6 456 827 Core 505 | . 104 401 Absorbed by Shields . | . . . Core Remaining (%) 79 | 100 58 . Volleys Fired 75 | 2 39 34 Largest 2 | 2 2 1 Hottest 120 | 60 120 33 Shots Fired 94 | 4 56 34 Gun 68 | 4 52 12 Cannon . | . . . Launcher 22 | . . 22 Special 4 | . 4 . Kinetic 48 | 2 34 12 Thermal 24 | 2 22 . Explosive 22 | . . 22 Electromagnetic . | . . . Robot Hit Streak 36 | 4 21 36 Robot Miss Streak 2 | . 2 2 Penetration Max . | . . . Secondary Targets 3 | . 3 . Max Gunslinging Chain 1 | . 1 . Shots Hit Robots 94 | 4 49 41 Core Hits 45 | 2 17 26 Critical Hits . | . . . Critical Kills . | . . . Critical Parts Destroyed . | . . . Melee Attacks 10 | . . 10 Impact 10 | . . 10 Slashing . | . . . Piercing . | . . . Sneak Attacks . | . . . Combat Hostiles . | . . . Follow-up Attacks . | . . . Damage Inflicted 1812 | 39 536 1237 Guns 633 | 39 440 154 Cannons . | . . . Explosions 848 | . . 848 Melee 221 | . . 221 Ramming 14 | . . 14 Kinetic 423 | 18 251 154 Thermal 306 | 21 285 . Explosive 848 | . . 848 Electromagnetic . | . . . Impact 221 | . . 221 Slashing . | . . . Piercing . | . . . Highest Corruption . | . . . Average Corruption . | . . . Corruption Purged . | . . . Overload Shots . | . . . Overflow Damage 38 | . . 38 Projectiles . | . . . Explosions 9 | . . 9 Melee 29 | . . 29 Knockbacks . | . . . Impact . | . . . Kinetic . | . . . Secondary . | . . . Self-Inflicted Damage 7 | . . 7 Shots . | . . . Rammed 1 | . . 1 Targets Rammed 1 | . . 1 Kicked . | . . . Crushed . | . . . Highest Temperature 145 | 26 145 3 Average Temperature 44 | 14 49 2 Received Heat Transfer 834 | 6 243 585 Siege Activations . | . . . Robots Corrupted . | . . . Combat Hostiles . | . . . Parts Fried 2 | . . 2 Impact Corruptions 2 | . . 2 Robots Melted . | . . . Combat Hostiles . | . . . Parts Melted . | . . . Heat Transferred 675 | 50 625 . Parts Sabotaged . | . . . Parts Stolen . | . . . Parts Stripped . | . . . Power Chain Reactions . | . . . Missiles Intercepted . | . . . Alert | -11 -10 -9 ------- Run | Scr Mat Mat Peak Influence 232 | 20 211 232 Initial 9 | . 9 5 Average 38 | 9 35 47 Maximum Alert Level 1 | . 1 1 Low Security (%) 95 | 100 92 97 Level 1 4 | . 7 2 Level 2 . | . . . Level 3 . | . . . Level 4 . | . . . Level 5 . | . . . High Security . | . . . Max Security . | . . . Squads Dispatched 5 | . 1 4 Investigation 1 | . 1 . Extermination . | . . . Reinforcement 4 | . . 4 Assault . | . . . Garrison . | . . . Intercept . | . . . Construction Impeded . | . . . Haulers Reinforced . | . . . Stealth | -11 -10 -9 --------- Run | Scr Mat Mat Distress Signals 2 | . 1 1 Communications Jammed . | . . . Distress Signals . | . . . Times Spotted 58 | 1 18 39 Peak Tracking Total 11 | 1 5 11 Tactical Retreats 5 | . 1 4 Traps | -11 -10 -9 ------- Run | Scr Mat Mat Traps Triggered 6 | . 1 5 Indirectly . | . . . Trap Hack Attempts . | . . . Triggered . | . . . Disarmed . | . . . Reprogrammed . | . . . Reused . | . . . Traps Extracted . | . . . Installed . | . . . Triggered . | . . . Machines | -11 -10 -9 ---------- Run | Scr Mat Mat Machines Disabled . | . . . Max in Single Turn . | . . . Machines Sabotaged . | . . . Garrisons Compromised . | . . . Overloaded Fab Kills . | . . . Fab Network Shutdowns . | . . . Hacking | -11 -10 -9 --------- Run | Scr Mat Mat Machines Accessed 7 | . 7 . Terminals 5 | . 5 . Fabricators . | . . . Repair Stations 1 | . 1 . Recycling Units 1 | . 1 . Scanalyzers . | . . . Garrison Access . | . . . Total Hacks 22 | . 22 . Successful 18 | . 18 . Failed 4 | . 4 . Catastrophic . | . . . Database Lockouts . | . . . Manual . | . . . Terminals 15 | . 15 . Fabricators . | . . . Repair Stations 3 | . 3 . Recycling Units 4 | . 4 . Scanalyzers . | . . . Garrison Access . | . . . Terminal Hacks 11 | . 11 . Record 3 | . 3 . Prototype ID Bank 1 | . 1 . Emergency Access Points 1 | . 1 . Alert Level 1 | . 1 . Locate Traps 1 | . 1 . Dispatch Records 2 | . 2 . Recall Investigation 1 | . 1 . Zone Layout 1 | . 1 . Fabricator Hacks . | . . . Repair Station Hacks 3 | . 3 . Scan Component 1 | . 1 . Repair 1 | . 1 . Refit 1 | . 1 . Recycling Unit Hacks 4 | . 4 . Recycle Component 1 | . 1 . Process 2 | . 2 . Report Inventory 1 | . 1 . Scanalyzer . | . . . Garrison Access Hacks . | . . . Unauthorized Hacks . | . . . Terminals . | . . . Fabricators . | . . . Repair Stations . | . . . Recycling Units . | . . . Scanalyzers . | . . . Garrison Access . | . . . Data Cores Recovered . | . . . Used . | . . . Hacking Detections 4 | . 4 . Full Trace Events 2 | . 2 . Feedback Events . | . . . Feedback Blocked . | . . . Robot Schematics Acquired . | . . . Robots Built . | . . . Matter . | . . . Time . | . . . Total Robot Build Rating . | . . . Part Schematics Acquired . | . . . Parts Built . | . . . Matter . | . . . Time . | . . . Total Part Build Rating . | . . . Parts Repaired 1 | . 1 . Time 26 | . 26 . Parts Recycled 1 | . 1 . Recycled Matter 53 | . 53 . Retrieved Matter . | . . . Retrieved Components . | . . . Parts Scanalyzed . | . . . Part Schematics Acquired . | . . . Parts Damaged . | . . . Bothacking | -11 -10 -9 ------------ Run | Scr Mat Mat Used RIF Installer . | . . . Robots Hacked . | . . . Non-combat . | . . . Combat . | . . . Robot Hacks Applied . | . . . Relay Couplers Released . | . . . Robots Rewired . | . . . Allies Hacked . | . . . Hacks Repelled . | . . . Allies | -11 -10 -9 -------- Run | Scr Mat Mat Total Allies . | . . . Largest Group . | . . . Highest-Rated Group . | . . . Highest-Rated Ally . | . . . Total Orders . | . . . Ally Attacks . | . . . Total Damage . | . . . Kills . | . . . Allies Corrupted . | . . . Allies Melted . | . . . Intel | -11 -10 -9 ------- Run | Scr Mat Mat Robot Analysis Total . | . . . Derelict Logs Recovered . | . . . Drone Launches . | . . . Drone Recoveries . | . . . Exploration | -11 -10 -9 ------------- Run | Scr Mat Mat Turns Passed 2665 | 222 1280 1163 Spaces Moved 2472 | 272 1231 969 Core 102 | 50 . 52 Treads . | . . . Legs . | . . . Wheels 1918 | 222 1231 465 Hover 307 | . . 307 Flight 145 | . . 145 Fastest Speed 35 | 50 80 35 Average Speed 88 | 74 95 83 Slowest Speed 120 | 80 100 120 Overloaded Moves . | . . . Propulsion Burnouts . | . . . Robots Hopped . | . . . Cave-ins Triggered . | . . . Exploration Rate (%) 56 | 11 100 58 Regions Visited 2 Branch Regions . Pre-discovered Areas . | . . . Known Exits Taken 2 | 1 1 . Unknown Exits Taken . | . . . Scrap Searched . | . . . Spaces Dug . | . . . Terrain Destroyed 109 | . . 109 Melee . | . . . Projectile . | . . . AOE 109 | . . 109 Terrain Rammed . | . . . Walls Destroyed . | . . . Machines Disabled . | . . . Actions | -11 -10 -9 --------- Run | Scr Mat Mat Total 2820 | 284 1280 1256 Wait 217 | . . 217 Move 2470 | 271 1230 969 Hop . | . . . Pick Up 4 | 4 . . Fast Attach 35 | 7 7 21 Attach . | . . . Detach 3 | . . 3 Swap 1 | . 1 . Drop 4 | . 3 1 Fire 75 | 2 39 34 Melee 10 | . . 10 Ram 1 | . . 1 Kick . | . . . Crush . | . . . Escape Stasis . | . . . Rewire . | . . . Trap . | . . . Miscellaneous . | . . . Route ------- -11/Scrapyard -10/Materials (discovered 5 exits: *Mat x3 / *Min x2) -9/Materials (discovered 1 exit: *Mat) History --------- Turn | Location | Event 2 | -11/Scrapyard | Met Revision 17 115 | -11/Scrapyard | Identified exit to Materials 115 | -11/Scrapyard | Discovered exit to Materials (range 8) 223 | -11/Scrapyard | Entered Materials 223 | -10/Materials | Evolved 1 slot: Utility x1 300 | -10/Materials | Build established: Hacker-Mutant 452 | -10/Materials | Identified exit to Mines 452 | -10/Materials | Discovered exit to Mines (range 15) 636 | -10/Materials | Identified exit to Materials 636 | -10/Materials | Discovered exit to Materials (range 13) 707 | -10/Materials | Discovered exit to Materials (range 15) 925 | -10/Materials | Discovered exit to Materials (range 10) 1369 | -10/Materials | Discovered exit to Mines (range 16) 1453 | -10/Materials | Repaired Lgt. Ion Engine 1503 | -10/Materials | Entered another Materials area 1503 | -9/Materials | Evolved 2 slots: Utility x2 2020 | -9/Materials | Lost 3 parts (1p1n1u) 2246 | -9/Materials | Core integrity fell below 50% 2266 | -9/Materials | Lost 3 parts (1n1u1w) 2400 | -9/Materials | Identified exit to Materials 2400 | -9/Materials | Discovered exit to Materials (range 16) 2594 | -9/Materials | Lost 3 parts (1p2w) 2610 | -9/Materials | Core integrity fell below 20% 2666 | -9/Materials | Destroyed by S-10 Pest with Light Assault Rifle Last Messages --------------- 02566_ U-05 Engineer lays Concrete. 02566_ Slammed into T-07 Excavator. 02566_ T-07 Excavator destroyed. 02566_ Destabilizing: Core damaged (-16). 02569_ U-05 Engineer builds a Wall. 02569_ Acquired 21 matter. 02569_ U-05 Engineer lays Concrete. 02575_ U-05 Engineer builds a Wall. 02592_ U-05 Engineer lays Concrete. 02597_ U-05 Engineer builds a Wall. 02599_ Imp. Hover Unit destroyed. 02611_ K-01 Serf cleans the Fusion Modulator. 02614_ Acquired Imp. Flight Unit. 02616_ O-16 Technician uses terminal to summon reinforcements. 02616_ ALERT: Hostiles spotted, dispatching reinforcements to Terminal M002. 02616_ O-16 Technician locks terminal. 02652_ ALERT: Hostiles spotted, dispatching reinforcements to Terminal M004. [Achievement: First Step to Greatness] Map ----- +----------------------------------------------------+ | ??????????????????# """ #???? | | ??????????????????# """ #???? | | ??????????????????# """ #???? | | ??????????????????+ ##???? | | ??????????????????# #????? | | ??????????????????# """ #????? | | ??????????????????# """ #????? | | ??????????????????# """ #????? | | ??????????????????# #????? | | ??????????????????# #????? | | ??????????????????# ####+###??? | | ??????????????????# # #??? | | ??????????????????# ?# """ #??? | | ??????????????????# ?# """ #??? | | ??????????????????# # s""" #??? | | ??????????????????+ / #??? | | ??????????????????# # #??? | | ??????????????????# ###s####??? | | ?????????????????# ???#s#?????? | | ???????????????? ???# ####### | | ??????????????? ????#s## # | | ??????????????####?????#s## # | | ???????????????????????# # # | | ???????????????????????#k # # | | ???????????????????????# + # | | ???????????????????????# @# # | | ???????????????????????# # # | | ?????????????????????? # # | | ????????????????????? # # | | ????????????????????#### ###### | | ???????????????????????# #????? | | ???????????????????????# #????? | | ???????????????????????# #????? | | ???????????????????????# #????? | | ???????????????????????+ +????? | | ???????????????????????# #????? | | ???????????????????????# #????? | | ???????????????????????###?????? | | ???????????????????????????????? | | ???????????????????????????????? | | ???????????????????????????????? | | ???????????????????????????????? | | ???????????????????????????????? | | | | | | | | | | | | | | | +----------------------------------------------------+ Best States ------------- Heat Dissipation 28 Energy Generation 10 Energy Capacity 125 Matter Stores 300 Matter Capacity 300 Sight Range 18 Terrain Scan Range 14 Terrain Scan Density 60 ECM Strength 1 Armor Coverage 150 Resistance: KI 35 Resistance: TH 35 Resistance: EX 35 Resistance: EM 35 Resistance: I 35 Resistance: S 35 Resistance: P 35 Weapon Shielding 33 Evasion (%) 63 Targeting Accuracy 8 Offensive Hacking 20 Item Schematics ----------------- None Robot Schematics ------------------ None Fabricated ------------ Nothing Alien Tech Used ----------------- None Achievements -------------- First Step to Greatness Oops Part-time Mechanic Challenges ------------ None Game ------ Seed CryofiberHeavyRail Manual? 0 Play Time 00:46:07 Cumulative 1.5 hours Start 2021.02.07 @ 12:33:01 End 2021.02.07 @ 13:26:25 Sessions 1 Manual Loads 0 Difficulty Explorer Special Mode None Game No. 2 Rogue 0 Adventurer 0 Explorer 2 Win Type - Total 0 Types 0/0/0/0/0/0/0/0/0 Lore% 1 Gallery% 4 Achievement% 4 Wizard Run 0 Options --------- ASCII 0 Keyboard 0 Movement Arrows Keybinds 0 Fullscreen 1 Font 24/Smallcaps Map View 76x50 Tactical HUD 1 Map Filters NONE Filters NONE Steam 1 RUN: f100af8b-fdfa-4d86-9f32-bb5aefca40db